[Event "Israel Open Championship 2023"]
[Site "Acre"]
[Date "2024.01.29"]
[Round "9.21"]
[White "Kraus, Ohad"]
[Black "Shilon Rahav, Eliran"]
[Result "1-0"]
[ECO "D31"]
[WhiteElo "2325"]
[BlackElo "2004"]
[Annotator "TA"]
[PlyCount "71"]
[EventDate "2024.01.18"]
[EventType "swiss"]
[EventCountry "ISR"]
[SourceTitle "playchess.com"]
[Source "ChessBase"]
[SourceQuality "1"]
[TimeControl "5400+30"]

{[%evp 15,71,0,3,-65,-29,-25,-44,-101,-105,-112,-95,-110,-49,-64,-50,-69,-66,-44,0,0,0,0,0,30,49,65,147,146,152,150,146,141,176,12,168,153,232,212,245,233,238,233,226,208,190,173,242,204,242,229,268,202,445,216,309,310,303,329]} 1. d4 {[%emt 0:00:51]} d5 {[%emt 0:00:13]} 2. c4 {[%emt 0:00:04]} e6 {[%emt 0:00:13]} 3. Nc3 {[%emt 0:00:27]} c6 {[%emt 0:00:53]} 4. e4 {[%emt 0:00:24]} dxe4 {[%emt 0:00:16]} 5. Nxe4 {[%emt 0:00:02]} Bb4+ {[%emt 0:01:01]} 6. Bd2 {[%emt 0:00:15]} Qxd4 {[%emt 0:00:52]} 7. Bxb4 {[%emt 0:00:02]} Qxe4+ {[%emt 0:00:14]} 8. Be2 {[%emt 0:00:03][%cal Bf1e2,Be2d3,Bd3f5][%mdl 32]} Na6 {[%emt 0:03:08]} 9. Ba3 {[%emt 0:10:49]} ({Better is} 9. Ba5 $11 Bd7 10. Nf3) 9... c5 {[%emt 0:12:17]} 10. Qd6 {[%emt 0:04:39][%cal Oe1c1]} Bd7 {[%emt 0:00:29]} 11. Nf3 {[%emt 0:04:31]} (11. Bxc5 $15 Nxc5 (11... Qxg2 12. Qf8#) 12. Qxc5) 11... Nh6 $17 {[%emt 0:01:20][%cal Bg8h6,Bh6g4,Bg4e3][%mdl 32]} 12. Nd2 {[%emt 0:20:42]} (12. Bxc5 $2 Nf5 13. Qd2 Nxc5 $19) 12... Qg6 {[%emt 0:07:26]} 13. Bd3 {[%emt 0:06:00]} (13. Bxc5 $2 Nf5 (13... Qxg2 14. Qe7#) 14. Qf4 Nxc5 $19) 13... f5 {[%emt 0:03:09]} (13... Nf5 $17 14. Qe5 f6 15. Bxf5 Qxf5 16. Qxf5 exf5) 14. Bxc5 $15 {[%emt 0:08:25]} Nxc5 {[%emt 0:02:24]} 15. Qxc5 {[%emt 0:00:04]} Qxg2 {[%emt 0:00:50]} 16. O-O-O {[%emt 0:00:34]} Ng4 {[%emt 0:01:56][%csl LRf2,LRh2]} 17. Bxf5 $1 {[%emt 0:18:38][%cal Od2e4]} Qxf2 $1 {[%emt 0:18:11]} (17... exf5 $6 18. Rhe1+ Kf7 19. Qe7+ (19. Re7+ Kg6 $18) 19... Kg6 20. Qxd7 $16) 18. Ne4 {[%emt 0:00:56]} Qe3+ {[%emt 0:01:08]} (18... Qxf5 $2 19. Nd6+ Kd8 20. Nxb7+ (20. Nxf5 Nf6 $18) 20... Ke8 21. Nd6+ Kd8 22. Nxf5 $18) 19. Kb1 $1 {[%emt 0:02:57] Chess con chili.} (19. Qxe3 $2 Nxe3 20. Rxd7 Kxd7 $19) 19... Qxc5 {[%emt 0:01:46]} 20. Nxc5 $40 {[%emt 0:00:03][%mdl 128] White mounts an attack.} Ne3 {[%emt 0:01:00]} ({Black should play} 20... Nf6 $14 21. Nxd7 (21. Nxe6 g6 $14) (21. Bxe6 Bxe6 22. Nxe6 Kf7 $16) 21... Nxd7 (21... exf5 22. Nxf6+ gxf6 23. Rhe1+ Kf8 24. Rd6 $16) 22. Bxe6 Nc5) 21. Rxd7 $16 {[%emt 0:00:42]} Nxf5 {[%emt 0:00:08]} 22. Rxb7 {[%emt 0:00:16] White is much more active. The black rooks are passive.} O-O {[%emt 0:01:41]} 23. Nxe6 {[%emt 0:00:13]} Rf6 {[%emt 0:01:22] [#]} 24. Ng5 {[%emt 0:01:45]} (24. Rf1 $1 $18 {[%cal Oe6g7] Hoping for Nxg7!} g6 25. Ng5) 24... Rg6 {[%emt 0:01:34] A mistake that costs the game.} (24... Nd6 $1 $11 25. Re7 Nxc4) 25. Nf3 $18 {[%emt 0:00:49]} Re8 {[%emt 0:01:16]} (25... Nd6 $16 26. Rc7 Rf6) 26. c5 {[%emt 0:01:43]} Re3 {[%emt 0:01:29]} 27. Rb8+ {[%emt 0:04:18]} Kf7 {[%emt 0:00:08]} 28. Rf1 {[%emt 0:00:01]} Ke7 {[%emt 0:00:57][%cal Oe3f3]} 29. Nd2 {[%emt 0:00:42]} Nd4 {[%emt 0:01:51]} 30. Nc4 {[%emt 0:02:51]} Re2 {[%emt 0:00:25]} (30... Re4 $142 31. Nd6 Reg4) 31. Rd1 {[%emt 0:00:25]} Rg4 {[%emt 0:02:31]} 32. h3 {[%emt 0:01:01]} Rf4 {[%emt 0:01:06]} 33. a3 {[%emt 0:04:21]} Rc2 $2 {[%emt 0:02:28]} (33... Nc6 {is a better defense.} 34. Rb7+ Kf6) 34. Rb7+ {[%emt 0:00:35]} (34. Rb4 $142 Re2 35. Nd6) 34... Kf6 {[%emt 0:00:28]} (34... Ke6 $142) 35. Nd6 {[%emt 0:00:44] [#] Strongly threatening Rf7+.} Rxc5 {[%emt 0:01:17]} 36. Rf7+ {[%emt 0:00:05] Weighted Error Value: White=0.33/Black=0.41.  Missed win:     	White=1     	---        Mistake:       	White=2     	Black=7      Inaccurate:     	---       	Black=3      OK:         	White=10    	Black=7      Best:        	White=3     	Black=2      Strong:       	White=2     	Black=1} ({Resist} 36. Rxa7 $6 Ke6 $16) 1-0

[Event "Israel Open Championship 2023"]
[Site "Acre"]
[Date "2024.01.29"]
[Round "9.22"]
[White "Kupervaser, Erez"]
[Black "Kinberg, Ofer"]
[Result "1-0"]
[ECO "A08"]
[WhiteElo "2250"]
[BlackElo "1927"]
[Annotator "TA"]
[PlyCount "95"]
[EventDate "2024.01.18"]
[EventType "swiss"]
[EventCountry "ISR"]
[SourceTitle "playchess.com"]
[Source "ChessBase"]
[SourceQuality "1"]
[TimeControl "5400+30"]

{[%evp 9,95,0,0,-14,-12,-6,-10,-13,-6,-17,-12,-29,-31,-45,11,8,11,26,49,39,119,0,-7,-2,-4,-10,-14,-32,-22,-20,-31,-22,-14,-52,-20,-48,0,0,0,-58,-51,-184,-191,-349,-336,-370,-354,-356,-237,-227,-246,-227,-127,-117,-137,-139,-120,-127,-139,-136,-137,-152,-151,-171,-75,-87,-70,-54,33,-52,14,20,204,197,243,244,428,419,878,854,29980,29980,29988,29989,29989,29990,29990,510]} 1. Nf3 {[%emt 0:00:05]} d5 {[%emt 0:00:14]} 2. g3 {[%emt 0:00:07]} Nf6 {[%emt 0:00:13]} 3. Bg2 {[%emt 0:00:07]} e6 {[%emt 0:00:08]} 4. O-O {[%emt 0:00:08]} c5 {[%emt 0:00:04]} 5. d3 {[%emt 0:00:07]} Nc6 {[%emt 0:00:10]} 6. Na3 {[%emt 0:00:30]} Be7 {[%emt 0:00:42]} 7. Bf4 {[%emt 0:00:24]} a6 {[%emt 0:02:05]} 8. e4 {[%emt 0:02:51] The position is equal.} O-O {[%emt 0:02:07]} 9. c3 {[%emt 0:03:35]} b5 {[%emt 0:06:13]} 10. e5 {[%emt 0:01:44]} Nd7 {[%emt 0:00:47]} 11. d4 {[%emt 0:00:17]} c4 {[%emt 0:08:03]} (11... b4 $15 12. Nc2 a5) 12. Nc2 $11 {[%emt 0:01:41]} b4 {[%emt 0:00:36]} 13. h4 {[%emt 0:03:29]} h6 {[%emt 0:13:33]} 14. Ne3 {[%emt 0:05:51]} Re8 {[%emt 0:01:55]} (14... Qe8 $14) 15. h5 {[%emt 0:03:29]} (15. Nh2 $16) 15... a5 {[%emt 0:00:27]} 16. Nd2 {[%emt 0:08:50]} Ra6 {[%emt 0:11:33]} 17. Qg4 {[%emt 0:03:00]} Kh8 {[%emt 0:03:57]} 18. Qf3 {[%emt 0:07:08][%cal Oe3d5]} a4 {[%emt 0:00:58]} 19. a3 {[%emt 0:02:13]} bxc3 {[%emt 0:00:50]} 20. bxc3 {[%emt 0:00:08]} Na5 {[%emt 0:04:22]} 21. Ng4 {[%emt 0:01:29][%cal Of4h6]} Bf8 {[%emt 0:01:45]} 22. Rfe1 {[%emt 0:06:29]} (22. Bxh6 $2 gxh6 23. Qxf7 Re7 $19) 22... Nb3 {[%emt 0:01:37]} (22... Rb6 $15 {might be stronger.}) 23. Ra2 {[%emt 0:01:01]} Nb8 {[%emt 0:04:41]} 24. Bf1 {[%emt 0:05:55]} (24. Bxh6 gxh6 25. Qxf7 Re7 $19) (24. Qe3 $11) 24... Nc6 $15 {[%emt 0:01:15]} 25. Nxc4 {[%emt 0:04:39]} dxc4 $19 {[%emt 0:18:17]} 26. Bxh6 $2 {[%emt 0:03:16]} (26. Bxc4 {was necessary.} Nca5 27. Bxa6 Bxa6 28. Bxh6 gxh6 29. Qf4) 26... gxh6 {[%emt 0:02:54]} 27. Nf6 {[%emt 0:00:45][%cal Of3e4] [#]} (27. Qxf7 Bg7 (27... Ra7 $2 28. Qf6+ Bg7 29. Qxd8 $19) 28. Ne3 Rf8 $19) 27... Bg7 $1 {[%emt 0:07:03] White must now prevent ...Bxf6.} 28. Bxc4 {[%emt 0:00:48]} Bxf6 {[%emt 0:06:20]} 29. exf6 {[%emt 0:00:26][%cal Of3f4]} Ra5 {[%emt 0:01:07]} 30. Qxc6 {[%emt 0:16:29]} Qd7 {[%emt 0:00:05]} (30... Rxh5 31. Bd3 Rg8 32. Qe4) (30... Rg8 $1 $19 31. Re3 Rxh5 (31... Qxf6 32. d5 $17)) 31. Qe4 $17 {[%emt 0:01:10]} Bb7 {[%emt 0:00:32] Against d5} (31... Rxh5 $2 32. Bd3 Rf5 33. Qh4 $18) 32. d5 {[%emt 0:01:09] [#]} Rxd5 {[%emt 0:00:58]} (32... Bxd5 33. Qe3 Kh7 34. Bd3+) 33. Bxd5 {[%emt 0:00:11]} Qxd5 {[%emt 0:00:25]} ({Much weaker is} 33... Bxd5 $6 34. Qe3 Kh7 35. Qd3+ Kh8 36. Qe3 $11) 34. Qxd5 {[%emt 0:00:23]} Bxd5 {[%emt 0:00:01]} 35. c4 {[%emt 0:00:29]} Bxc4 {[%emt 0:00:17] ...Nd4 would now be deadly.} 36. Rc2 {[%emt 0:00:46] [#]} Bd5 {[%emt 0:01:32]} (36... Nd4 $1 $19 {[%cal Rd4c2] has better winning chances.} 37. Rxc4 Nf3+ 38. Kh1 (38. Kf1 $2 Nd2+ 39. Kg1 Nxc4 $19) 38... Nxe1 39. Rxa4 Rc8) 37. Rc7 {[%emt 0:00:06]} Kg8 {[%emt 0:00:17]} 38. Rd1 {[%emt 0:01:33] Inhibits Nd4.} Ra8 {[%emt 0:00:53]} (38... Bf3 $1 $15 39. Rdd7 Rf8 (39... Bxh5 40. g4 $15)) 39. f4 {[%emt 0:00:36]} (39. g4 $14) 39... Rb8 {[%emt 0:00:24]} (39... Bf3 $1 $15 40. Rdd7 Bxh5) 40. g4 $11 {[%emt 0:02:10]} Re8 $2 {[%emt 0:00:37]} (40... Na5 $1 $11 {and Black is okay.}) 41. Kf2 $18 {[%emt 0:01:11]} Rb8 {[%emt 0:00:00]} (41... Rf8 $142 42. g5 Na5) 42. g5 {[%emt 0:00:00] Threatens to win with g6.} hxg5 {[%emt 0:00:00]} (42... Rf8 43. Ke3 (43. gxh6 Kh7 $11) 43... Na5) 43. fxg5 {[%emt 0:00:00] aiming for g6.} Na5 {[%emt 0:00:00]} (43... Rf8 $142 44. Ke3 Na5) 44. g6 {[%emt 0:00:00]} fxg6 {[%emt 0:00:00]} 45. hxg6 {[%emt 0:00:00] White mates.} Rf8 {[%emt 0:00:00]} 46. Rg7+ {[%emt 0:00:00]} Kh8 {[%emt 0:00:00]} 47. Rh7+ {[%emt 0:00:00]} Kg8 {[%emt 0:00:00]} 48. f7+ {[%emt 0:00:00] Weighted Error Value: White=0.28 (precise) /Black=0.52.  Loses game:     	---       	Black=1      Mistake:       	White=5     	Black=10     Inaccurate:     	White=2     	Black=3      OK:         	White=6     	Black=13     Best:        	White=6     	Black=1} 1-0

[Event "Israel Open Championship 2023"]
[Site "Acre"]
[Date "2024.01.29"]
[Round "9.23"]
[White "Vardi, Daniel"]
[Black "Iliaguev, Daniel"]
[Result "1-0"]
[ECO "B31"]
[WhiteElo "1791"]
[BlackElo "2153"]
[Annotator "TA"]
[PlyCount "88"]
[EventDate "2024.01.18"]
[EventType "swiss"]
[EventCountry "ISR"]
[SourceTitle "playchess.com"]
[Source "ChessBase"]
[SourceQuality "1"]
[TimeControl "5400+30"]

{[%evp 18,88,12,-12,0,-19,-31,-51,-35,-51,-54,-79,-79,-96,-33,-39,-30,-34,0,-33,-22,-128,-137,-164,-150,-158,-167,-163,-163,-334,-294,-262,-271,-261,-235,-235,-244,-237,-120,-123,-120,-126,-101,-98,-72,-62,-70,-51,229,210,479,467,477,445,501,508,727,693,593,593,593,593,593,577,662,661,645,633,866,858,29974,29975,1598]} 1. e4 {[%emt 1:31:00]} c5 {[%emt 1:31:00]} 2. Nf3 {[%emt 0:00:30]} Nc6 {[%emt 0:00:30]} 3. Bb5 {[%emt 0:00:30]} g6 {[%emt 0:00:30]} 4. O-O {[%emt 0:00:30]} Bg7 {[%emt 0:00:30]} 5. c3 {[%emt 0:00:30]} Nf6 {[%emt 0:00:30]} 6. e5 {[%emt 0:00:30]} Nd5 {[%emt 0:00:30]} 7. d4 {[%emt 0:00:30]} cxd4 {[%emt 0:00:30]} 8. cxd4 {[%emt 0:00:30]} O-O {[%emt 0:00:30]} 9. Nc3 {[%emt 0:00:30]} Nc7 {[%emt 0:00:30]} 10. Bc4 {[%emt 0:00:30]} d5 {[%emt 0:00:30]} 11. exd6 {[%emt 0:00:30]} Qxd6 {[%emt 0:00:30][%cal Oc8g4]} 12. Be3 {[%emt 0:00:30]} Rd8 {[%emt 0:00:30][%cal Oc8e6] Black is slightly better.} 13. Re1 {[%emt 0:00:30]} Be6 $1 {[%emt 0:00:30]} (13... Nxd4 $6 14. Nxd4 Bxd4 15. Bxd4 Qxd4 16. Rxe7 $16) 14. Bxe6 {[%emt 0:00:30]} Nxe6 {[%emt 0:00:30]} 15. Qe2 {[%emt 0:00:30]} Nb4 {[%emt 0:00:30]} (15... Bxd4 16. Nb5 Qc5 17. Rac1 $15) (15... a6 $17 {[%cal Oa8c8]} 16. h3 Nexd4 (16... Ncxd4 17. Nxd4 Nxd4 18. Bxd4 $15) 17. Bxd4 Nxd4 18. Nxd4 Bxd4) 16. Red1 {[%emt 0:00:30]} Nd5 {[%emt 0:00:30]} 17. Qb5 {[%emt 0:00:30]} f5 {[%emt 0:00:30]} 18. Bg5 {[%emt 0:00:30]} (18. Qxb7 $2 Nxc3 19. bxc3 Rdb8 $19) 18... h6 {[%emt 0:00:30]} 19. Nxd5 {[%emt 0:00:30]} (19. Bd2 $11) 19... hxg5 $17 {[%emt 0:00:30]} (19... Nxg5 20. Nc3 $15) 20. Ne3 {[%emt 0:00:30]} g4 {[%emt 0:00:30]} (20... Bxd4 $2 21. Nc2 Bxf2+ (21... a6 $2 22. Qb3 $18) 22. Kxf2 Qb6+ 23. Qxb6 axb6 24. Re1 $18) (20... Nxd4 21. Qc4+ e6 22. Nxd4 Bxd4 23. Nc2 Bxf2+ 24. Kxf2 Qb6+ 25. Kf1 $16) 21. Ne5 {[%emt 0:00:30]} Nxd4 {[%emt 0:00:30]} 22. Qc4+ {[%emt 0:00:30] [#]} e6 $1 {[%emt 0:00:30]} (22... Kh7 23. Nf7 b5 24. Ng5+ Kh6 (24... Kh8 25. Qf7 $11) 25. Nf7+ Kh7 26. Ng5+ Kh6 (26... Kh8 27. Qf7 $11) 27. Nf7+ Kh7 $11) 23. Nxg6 {[%emt 0:00:30]} (23. Rxd4 {was worth a try.} Qxe5 (23... Qxd4 $2 {is the wrong capture.} 24. Qxe6+ Kh7 25. Qxg6+ Kg8 26. Qe6+ Kh7 27. Qxf5+ Kg8 28. Qe6+ Kh7 29. Nf7 $18) 24. Rdd1) 23... Kh7 {[%emt 0:00:30]} 24. Nh4 {[%emt 0:00:30]} Rac8 {[%emt 0:00:30]} 25. Qf1 {[%emt 0:00:30]} Bf6 {[%emt 0:00:30]} 26. Nhxf5 {[%emt 0:00:30]} exf5 {[%emt 0:00:30]} 27. Nxf5 {[%emt 0:00:30]} Qa6 {[%emt 0:00:30]} ({Black should try} 27... Qf4 $19 28. Ng3 Kg6) 28. Qxa6 {[%emt 0:00:30]} bxa6 {[%emt 0:00:30]} 29. Ne3 {[%emt 0:00:30]} Nb5 {[%emt 0:00:30]} 30. a4 {[%emt 0:00:30] Hoping for Rxd8.} Bxb2 {[%emt 0:00:30]} 31. Rxd8 {[%emt 0:00:30]} Rxd8 {[%emt 0:00:30]} 32. Rb1 {[%emt 0:00:30] [#]} Rc8 $2 {[%emt 0:00:30][%mdl 8192] Loses the game.} 33. axb5 $18 {[%emt 0:00:30]} (33. Rxb2 Rc1+ 34. Nf1 Nd4 $14) 33... axb5 $2 {[%emt 0:00:30]} (33... Bd4 {is a better defense.} 34. bxa6 (34. Nxg4 axb5 35. Kf1 Rb8 $11) 34... Rc6 35. Nxg4 Rxa6 36. Rb7+ Kg8) 34. Rxb2 {[%emt 0:00:30][%mdl 4096] Endgame. KRN-KR} Rc1+ {[%emt 0:00:30]} 35. Nf1 {[%emt 0:00:30]} a6 {[%emt 0:00:30]} 36. g3 {[%emt 0:00:30]} Kg7 {[%emt 0:00:30]} 37. Ra2 {[%emt 0:00:30]} Rc6 {[%emt 0:00:30]} 38. Ne3 {[%emt 0:00:30]} Kf6 {[%emt 0:00:30]} 39. Nd5+ {[%emt 0:00:30]} Ke5 {[%emt 0:00:30]} 40. Nb4 {[%emt 0:00:30][%csl LRa6,LRc6]} Rc1+ {[%emt 0:00:30]} 41. Kg2 {[%emt 0:00:30] White wants to mate with Nd3+.} Rc4 {[%emt 0:00:30]} 42. Nxa6 {[%emt 0:00:30]} Kd5 {[%emt 0:00:30]} 43. Rb2 {[%emt 0:00:30]} Kc6 {[%emt 0:00:30] [#]} 44. Rc2 $3 {[%emt 0:00:30][%mdl 512]} Kd5 {[%emt 0:00:30] Weighted Error Value: White=0.16 (very precise) /Black=0.44.  Loses game:     	---       	Black=1      Mistake:       	White=2     	Black=3      Inaccurate:     	White=1     	Black=2      OK:         	White=10    	Black=7      Best:        	White=5     	Black=3      Strong:       	---       	Black=2} (44... Kb6 45. Rxc4) 1-0

[Event "Israel Open Championship 2023"]
[Site "Acre"]
[Date "2024.01.29"]
[Round "9.24"]
[White "Pevzner, Maks"]
[Black "Kopelevich, Boris"]
[Result "1-0"]
[ECO "E73"]
[WhiteElo "2072"]
[BlackElo "2006"]
[Annotator "NA RC"]
[PlyCount "79"]
[EventDate "2024.01.18"]
[EventType "swiss"]
[EventCountry "ISR"]
[SourceTitle "playchess.com"]
[Source "ChessBase"]
[SourceQuality "1"]
[TimeControl "5400+30"]

1. c4 {[%emt 0:00:13]} Nf6 {[%emt 0:00:21]} 2. Nc3 {[%emt 0:00:21]} g6 {[%emt 0:00:33]} 3. e4 {[%emt 0:00:24]} d6 {[%emt 0:00:02]} 4. d4 {[%emt 0:00:17]} Bg7 {[%emt 0:00:12]} 5. Be2 {[%emt 0:00:19]} O-O {[%emt 0:00:07]} 6. Bg5 {[%emt 0:00:34]} h6 {[%emt 0:01:08]} 7. Be3 {[%emt 0:00:13]} e5 {[%emt 0:01:59]} 8. d5 {[%emt 0:01:03]} Nbd7 {[%emt 0:00:50]} 9. Qd2 {[%emt 0:01:11]} Kh7 {[%emt 0:00:12]} 10. g4 {[%emt 0:01:35]} Nc5 {[%emt 0:03:28]} 11. f3 {[%emt 0:00:45]} a5 {[%emt 0:00:26]} 12. h4 {[%emt 0:03:41]} Bd7 {[%emt 0:12:03]} 13. Nh3 {[%emt 0:09:34]} Ne8 {[%emt 0:09:13]} 14. h5 {[%emt 0:02:06]} g5 {[%emt 0:01:38]} 15. b3 {[%emt 0:01:18]} Bf6 {[%emt 0:00:53]} 16. Nf2 {[%emt 0:00:20]} Be7 {[%emt 0:03:00]} 17. O-O {[%emt 0:00:37]} Nf6 {[%emt 0:05:52]} 18. Kg2 {[%emt 0:01:32]} Qc8 {[%emt 0:02:13]} 19. Qb2 {[%emt 0:04:50]} b6 {[%emt 0:55:50]} 20. a3 {[%emt 1:09:37]} Nb7 {[%emt 0:00:00]} 21. b4 {[%emt 0:00:00]} Rg8 {[%emt 0:00:00]} 22. Rh1 {[%emt 0:00:00]} Qf8 {[%emt 0:00:00]} 23. Rac1 {[%emt 0:00:00]} Qg7 {[%emt 0:00:00]} 24. Nd3 {[%emt 0:00:00]} Rgb8 {[%emt 0:00:00]} 25. Nd1 {[%emt 0:00:00]} Ng8 {[%emt 0:00:00]} 26. N1f2 {[%emt 0:00:00]} Qf8 {[%emt 0:00:00]} 27. Rb1 {[%emt 0:00:00]} Qc8 {[%emt 0:00:00]} 28. Rhc1 {[%emt 0:00:00]} f6 {[%emt 0:00:00]} 29. Qc2 {[%emt 0:00:00]} Ra7 {[%emt 0:00:00]} 30. c5 {[%emt 0:00:00]} axb4 {[%emt 0:00:00]} 31. c6 {[%emt 0:00:00]} Bxg4 {[%emt 0:00:00]} 32. fxg4 {[%emt 0:00:00]} Nc5 {[%emt 0:04:04]} 33. axb4 {[%emt 0:00:00]} Nxd3 {[%emt 0:00:04]} 34. Nxd3 {[%emt 0:00:00]} Rba8 {[%emt 0:00:07]} 35. b5 {[%emt 0:00:00]} Ra4 {[%emt 0:01:16]} 36. Nb4 {[%emt 0:00:00]} Ra3 {[%emt 0:00:50]} 37. Rb3 {[%emt 0:00:00]} R3a4 {[%emt 0:00:20]} 38. Na6 {[%emt 0:00:00]} Bd8 {[%emt 0:00:52]} 39. Rbb1 {[%emt 0:00:00]} Ra3 {[%emt 0:00:22]} 40. Bf2 {[%emt 0:00:00]} 1-0

[Event "Israel Open Championship 2023"]
[Site "Acre"]
[Date "2024.01.29"]
[Round "9.25"]
[White "Menahem, Adi"]
[Black "Rinberg, David"]
[Result "1-0"]
[ECO "A45"]
[WhiteElo "2062"]
[BlackElo "1790"]
[Annotator "NA RC"]
[PlyCount "75"]
[EventDate "2024.01.18"]
[EventType "swiss"]
[EventCountry "ISR"]
[SourceTitle "playchess.com"]
[Source "ChessBase"]
[SourceQuality "1"]
[TimeControl "5400+30"]

1. d4 {[%emt 0:00:16]} Nf6 {[%emt 0:00:19]} 2. Bf4 {[%emt 0:00:15]} g6 {[%emt 0:00:18]} 3. Nc3 {[%emt 0:00:23]} d5 {[%emt 0:00:17]} 4. Nb5 {[%emt 0:00:38]} Na6 {[%emt 0:00:46]} 5. e3 {[%emt 0:00:09]} Bg7 {[%emt 0:01:40]} 6. h3 {[%emt 0:00:34]} O-O {[%emt 0:00:57]} 7. Nf3 {[%emt 0:01:02]} b6 {[%emt 0:02:41]} 8. Be2 {[%emt 0:03:45]} c5 {[%emt 0:02:15]} 9. O-O {[%emt 0:02:20]} Bb7 {[%emt 0:00:45]} 10. c3 {[%emt 0:03:51]} Nd7 {[%emt 0:04:56]} 11. Qa4 {[%emt 0:08:05]} Nab8 {[%emt 0:09:47]} 12. Nc7 {[%emt 0:12:10]} Bc6 {[%emt 0:34:51]} 13. Bb5 {[%emt 0:23:54]} Bxb5 {[%emt 0:03:33]} 14. Nxb5 {[%emt 0:01:58]} a6 {[%emt 0:05:25]} 15. Nc7 {[%emt 0:04:57]} e5 {[%emt 0:02:58]} 16. Nxe5 {[%emt 0:09:07]} Bxe5 {[%emt 0:05:14]} 17. Bxe5 {[%emt 0:03:39]} Nxe5 {[%emt 0:02:20]} 18. Nxa8 {[%emt 0:00:09]} Ned7 {[%emt 0:03:46]} 19. dxc5 {[%emt 0:02:52]} Nxc5 {[%emt 0:01:02]} 20. Qb4 {[%emt 0:08:25]} Nbd7 {[%emt 0:00:36]} 21. Nxb6 {[%emt 0:00:07]} Qxb6 {[%emt 0:00:12]} 22. Qxb6 {[%emt 0:00:29]} Nxb6 {[%emt 0:00:03]} 23. Rac1 {[%emt 0:01:00]} Rc8 {[%emt 0:02:33]} 24. Rfd1 {[%emt 0:00:11]} f6 {[%emt 0:01:03]} 25. f3 {[%emt 0:00:42]} Nca4 {[%emt 0:01:22]} 26. Rc2 {[%emt 0:04:03]} Kf7 {[%emt 0:01:49]} 27. Kf2 {[%emt 0:00:51]} Ke6 {[%emt 0:01:32]} 28. Rd4 {[%emt 0:00:39]} Nc4 {[%emt 0:02:04]} 29. e4 {[%emt 0:02:39]} dxe4 {[%emt 0:02:47]} 30. Rxe4+ {[%emt 0:00:16]} Kf7 {[%emt 0:00:18]} 31. b3 {[%emt 0:01:03]} Na3 {[%emt 0:00:27]} 32. Rd2 {[%emt 0:00:41]} Nxc3 {[%emt 0:00:29]} 33. Rd7+ {[%emt 0:00:06]} Kf8 {[%emt 0:00:16]} 34. Re6 {[%emt 0:00:57]} Ncb5 {[%emt 0:04:42]} 35. Rxh7 {[%emt 0:01:41]} Rc2+ {[%emt 0:00:29]} 36. Kg3 {[%emt 0:00:29]} Nd4 {[%emt 0:00:24]} 37. Rxa6 {[%emt 0:00:23]} Nf5+ {[%emt 0:01:10]} 38. Kh2 {[%emt 0:00:12]} 1-0